bitfinex/quotes_BTCUSD_20250714
["timestamp","ask_amount","ask_price","bid_price","bid_amount"]
[1752498131459,0.55042789,121830.0,121820.0,0.02037307]
[1752498131668,0.28409353,121830.0,121820.0,0.14925307]
[1752498131875,0.45646445,121830.0,121820.0,0.13392]
[1752498132079,0.44662297,121830.0,121820.0,0.149252]
[1752498132199,0.27425205,121830.0,121820.0,0.149252]
[1752498132408,0.03181808,121830.0,121820.0,0.14925223]
[1752498132628,0.28345973,121830.0,121820.0,0.02037223]
[1752498132891,0.28345973,121830.0,121820.0,0.14925213]
[1752498132892,0.45583072,121830.0,121820.0,0.14925213]
[1752498133098,0.45583065,121830.0,121820.0,0.02037213]
[1752498133301,0.45583072,121830.0,121820.0,0.14925213]
[1752498133507,0.4476229,121830.0,121820.0,0.14925213]
[1752498133707,0.28345973,121830.0,121820.0,0.14925213]
[1752498133910,0.45583072,121830.0,121820.0,0.14925213]
[1752498134327,0.2834598,121830.0,121820.0,0.14925213]
[1752498134506,0.28345973,121830.0,121820.0,0.14925213]
[1752498134863,0.4476229,121830.0,121820.0,0.14925213]
[1752498135289,0.45583072,121830.0,121820.0,0.14925213]
[1752498135703,0.4476229,121830.0,121820.0,0.14925213]
[1752498136099,0.20732893,121830.0,121820.0,0.14925213]
[1752498136618,0.4497629,121830.0,121820.0,0.14925213]
[1752498136835,0.49927867,121830.0,121820.0,0.48925213]
[1752498137066,0.47566814,121830.0,121820.0,0.36037213]
[1752498137297,0.47566814,121830.0,121820.0,0.48925213]
[1752498137531,0.48387616,121830.0,121820.0,0.36037213]
[1752498137779,0.48387676,121830.0,121820.0,0.48925204]
[1752498138002,0.46746059,121830.0,121820.0,0.48925204]
[1752498138244,0.81877426,121830.0,121820.0,0.35533204]
[1752498138682,0.94765426,121830.0,121820.0,0.48421204]
[1752498138906,0.93944631,121830.0,121820.0,0.48421204]
[1752498139118,0.97266694,121830.0,121820.0,0.48421204]
[1752498140749,0.97266694,121830.0,121820.0,0.48421237]
[1752498141383,0.487799,121830.0,121820.0,0.48421237]
[1752498141597,0.84378694,121830.0,121820.0,0.48421237]
[1752498141814,0.60135297,121830.0,121820.0,0.48421237]
[1752498142240,0.358919,121830.0,121820.0,0.48421237]
[1752498142446,0.60135297,121830.0,121820.0,0.48421237]
[1752498143269,0.60135297,121830.0,121820.0,0.48417237]
[1752498143887,0.60135297,121830.0,121820.0,0.48417193]
[1752498145513,0.59151091,121830.0,121820.0,0.48417193]
[1752498145720,0.59151091,121830.0,121820.0,0.46884]
[1752498146339,0.72035091,121830.0,121820.0,0.46884]
[1752498146545,0.59151091,121830.0,121820.0,0.34]
[1752498146750,0.72035091,121830.0,121820.0,0.46884]
[1752498146966,0.16419013,121810.0,121800.0,0.03715]
[1752498147208,0.45854152,121810.0,121800.0,0.13287]
[1752498147428,0.22431692,121810.0,121800.0,0.13287]
[1752498147638,0.46675089,121810.0,121800.0,0.47287]
[1752498147880,0.45854193,121810.0,121800.0,0.34403]
[1752498148293,0.45854193,121810.0,121800.0,0.47387]
[1752498148294,0.46675143,121810.0,121800.0,0.47387]
[1752498148706,0.46675143,121810.0,121800.0,0.47587]
[1752498149158,0.45854227,121810.0,121800.0,0.47587]
[1752498150032,0.45033297,121810.0,121800.0,0.47587]
[1752498151657,0.48073297,121810.0,121800.0,0.47587]
[1752498153668,0.48073297,121810.0,121800.0,0.49119837]
[1752498154263,0.238299,121810.0,121800.0,0.49119837]
[1752498154472,0.48073297,121810.0,121800.0,0.49119837]
[1752498155414,0.238299,121810.0,121800.0,0.49119837]
[1752498155618,0.45033263,121810.0,121800.0,0.49434837]
[1752498155850,0.45854206,121810.0,121800.0,0.49434837]
[1752498156731,0.21610809,121810.0,121800.0,0.49434837]
[1752498156931,0.45854206,121810.0,121800.0,0.49434837]
[1752498157305,0.20626506,121810.0,121800.0,0.49434837]
[1752498157513,0.44869903,121810.0,121800.0,0.49434837]
[1752498157741,0.20626506,121810.0,121800.0,0.47902]
[1752498157945,0.44869903,121810.0,121800.0,0.47902]
[1752498159280,0.19805563,121810.0,121800.0,0.47902]
[1752498159495,0.4404896,121810.0,121800.0,0.47902]
[1752498159637,0.4486991,121810.0,121800.0,0.47902]
[1752498159843,0.4404896,121810.0,121800.0,0.47902]
[1752498160246,0.44869849,121810.0,121800.0,0.35018]
[1752498160449,0.16535522,121810.0,121800.0,0.47898]
[1752498160734,0.0082089,121810.0,121800.0,0.72141397]
[1752498160926,0.01641786,121810.0,121800.0,0.72141397]
[1752498161321,0.50165709,121820.0,121800.0,0.75421397]
[1752498161527,0.00820903,121810.0,121800.0,0.75421397]
[1752498161743,0.18060832,121810.0,121800.0,0.72141397]
[1752498162228,0.17239916,121810.0,121800.0,0.72041397]
[1752498162437,0.18060832,121810.0,121800.0,0.72041397]
[1752498162616,0.18060832,121810.0,121800.0,0.72141397]
[1752498162813,0.17239916,121810.0,121800.0,0.72141397]
[1752498163129,0.18060832,121810.0,121800.0,0.72141397]
[1752498163356,0.18060826,121810.0,121800.0,0.72141397]
[1752498163532,0.17239903,121810.0,121800.0,0.72141397]
[1752498163722,0.18881715,121810.0,121800.0,0.72141397]
[1752498163920,0.18060799,121810.0,121800.0,0.72141397]
[1752498164145,0.18881709,121810.0,121800.0,0.72041397]
[1752498164398,0.18881709,121810.0,121800.0,0.72141397]
[1752498164843,0.19702632,121810.0,121800.0,0.72141397]
[1752498165261,0.20523569,121810.0,121800.0,0.47898]
[1752498165470,0.20523569,121810.0,121800.0,0.72141397]
[1752498165914,0.44766966,121810.0,121800.0,0.47898]
[1752498166138,0.43946029,121810.0,121800.0,0.35018]
[1752498166555,0.44766966,121810.0,121800.0,0.47898]
[1752498166773,0.44766959,121810.0,121800.0,0.47898]
[1752498167640,0.42961766,121810.0,121800.0,0.47898]
[1752498167924,0.43782662,121810.0,121800.0,0.47898]
[1752498168155,0.44603605,121810.0,121800.0,0.47898]
[1752498168355,0.44603599,121810.0,121800.0,0.47894]
[1752498168606,0.43782662,121810.0,121800.0,0.47894]
[1752498168834,0.19539265,121810.0,121800.0,0.47894]
[1752498169045,0.43782662,121810.0,121800.0,0.47894]
[1752498169268,0.42961725,121810.0,121800.0,0.47894]
[1752498169475,0.17897412,121810.0,121800.0,0.47894]
[1752498169690,0.25064293,121810.0,121800.0,0.47894]
[1752498169870,0.25885203,121810.0,121800.0,0.47894]
[1752498170071,0.25064293,121810.0,121800.0,0.47894]
[1752498170431,0.00820896,121810.0,121800.0,0.47894]
[1752498170640,0.25064293,121810.0,121800.0,0.47894]
[1752498170861,0.24243397,121810.0,121800.0,0.47894]
[1752498171242,0.32415264,121820.0,121800.0,0.47894]
[1752498171460,0.58300406,121820.0,121810.0,0.12876]
[1752498171656,0.81939927,121820.0,121810.0,0.13082]
[1752498171883,0.33453133,121820.0,121810.0,0.13082]
[1752498172140,0.8276081,121820.0,121810.0,0.13082]
[1752498172372,0.8276081,121820.0,121810.0,0.00206]
[1752498172595,0.8276081,121820.0,121810.0,0.13082]
[1752498173196,0.81939974,121820.0,121810.0,0.13082]
[1752498173384,0.81939974,121820.0,121810.0,0.13182]
[1752498173565,0.81939974,121820.0,121810.0,0.475]
[1752498173792,0.81939974,121820.0,121810.0,0.47182]
[1752498174174,0.32632297,121820.0,121810.0,0.47182]
[1752498174341,0.81119091,121820.0,121810.0,0.34624]
[1752498174562,0.81939974,121820.0,121810.0,0.475]
[1752498174975,0.81119091,121820.0,121810.0,0.47182]
[1752498175232,0.57696524,121820.0,121810.0,0.47182]
[1752498175463,0.53835661,121820.0,121810.0,0.475]
[1752498175596,0.13173396,121820.0,121810.0,0.475]
[1752498175797,0.78898718,121820.0,121810.0,0.475]
[1752498176048,0.81918718,121820.0,121810.0,0.49032761]
[1752498176277,0.77914441,121820.0,121810.0,0.49032761]
[1752498176485,0.81915317,121820.0,121810.0,0.48714761]
[1752498177094,0.82214317,121820.0,121810.0,0.14408761]
[1752498177503,0.81393441,121820.0,121810.0,0.14408761]
[1752498177705,0.8221431,121820.0,121810.0,0.14408761]
[1752498178176,0.83035193,121820.0,121810.0,0.14408761]
[1752498178543,0.8221431,121820.0,121810.0,0.14408761]
[1752498179887,0.32085784,121820.0,121810.0,0.14408761]
[1752498180096,0.80572578,121820.0,121810.0,0.14408761]
[1752498180326,0.57958341,121820.0,121810.0,0.14408761]
[1752498180537,0.65890039,121820.0,121810.0,0.14408761]
[1752498180740,0.83128566,121820.0,121810.0,0.12876]
[1752498181045,0.8312856,121820.0,121810.0,0.14409146]
[1752498181354,0.82307697,121820.0,121810.0,0.14409114]
[1752498181561,0.8312856,121820.0,121810.0,0.14409114]
[1752498182510,0.16582389,121820.0,121810.0,0.14409114]
[1752498182721,0.15761547,121820.0,121810.0,0.01533114]
[1752498182958,0.16582396,121820.0,121810.0,0.01533114]
[1752498183148,0.57243458,121820.0,121810.0,0.14405114]
[1752498183366,0.81486855,121820.0,121810.0,0.14405114]
[1752498183642,0.82307718,121820.0,121810.0,0.14405114]
[1752498183913,0.81486855,121820.0,121810.0,0.01533114]
[1752498184123,0.7164719,121820.0,121810.0,0.14401114]
[1752498184341,0.09172547,121820.0,121810.0,0.14607114]
[1752498184592,0.73936341,121820.0,121810.0,0.14607114]
[1752498184804,0.71348183,121820.0,121810.0,0.14607114]
[1752498185256,0.21219711,121820.0,121810.0,0.14607114]
[1752498185490,0.70527334,121820.0,121810.0,0.14607114]
[1752498185721,0.33415937,121820.0,121810.0,0.14607114]
[1752498185990,0.08351711,121820.0,121810.0,0.14607114]
[1752498186185,0.08351711,121820.0,121810.0,0.01739114]
[1752498186389,0.32595108,121820.0,121810.0,0.14607114]
[1752498186612,0.08351711,121820.0,121810.0,0.13074]
[1752498186996,0.08351711,121820.0,121810.0,0.13392]
[1752498187199,0.08351711,121820.0,121810.0,0.13074]
[1752498187414,0.32595108,121820.0,121810.0,0.13074]
[1752498187825,0.08351711,121820.0,121810.0,0.47074]
[1752498188179,0.08134711,121820.0,121810.0,0.47074]
[1752498188392,0.34236766,121820.0,121810.0,0.47074]
[1752498188591,0.34535766,121820.0,121810.0,0.47074]
[1752498188837,0.38536615,121820.0,121810.0,0.47074]
[1752498188991,0.38536608,121820.0,121810.0,0.47074]
[1752498189174,0.3689493,121820.0,121810.0,0.47074]
[1752498189644,0.36074108,121820.0,121810.0,0.47074]
[1752498189868,0.36074108,121820.0,121810.0,0.34206]
[1752498190125,0.08351711,121820.0,121810.0,0.47074]
[1752498190355,0.32595108,121820.0,121810.0,0.47074]
[1752498190564,0.3341593,121820.0,121810.0,0.47074]
[1752498190769,0.32595108,121820.0,121810.0,0.47074]
[1752498191156,0.2370207,121830.0,121810.0,0.47392]
[1752498191353,0.5690096,121830.0,121810.0,0.47392]
[1752498191556,0.24243397,121820.0,121810.0,0.47392]
[1752498191806,0.18148013,121830.0,121810.0,0.71635397]
[1752498191966,0.03324302,121830.0,121820.0,0.40347397]
[1752498192169,0.18144408,121840.0,121820.0,0.40871397]
[1752498192347,0.52711802,121840.0,121820.0,0.40871397]
[1752498192552,0.70768258,121840.0,121820.0,0.37631397]
[1752498192846,0.61313139,121840.0,121820.0,0.00524]
[1752498193095,0.75818615,121840.0,121820.0,0.13388]
[1752498193300,0.3789047,121840.0,121820.0,0.00524]
[1752498193437,0.62133867,121840.0,121820.0,0.00524]
[1752498193825,0.24243397,121830.0,121820.0,0.13388]
[1752498194016,0.24460397,121830.0,121820.0,0.13388]
[1752498194220,0.42618243,121830.0,121820.0,0.00206]
[1752498194429,0.42518243,121830.0,121820.0,0.1307]
[1752498194556,0.46579025,121830.0,121820.0,0.00206]
[1752498194771,0.45758243,121830.0,121820.0,0.1307]
[1752498195178,0.45858243,121830.0,121820.0,0.1307]
[1752498195378,0.47499806,121830.0,121820.0,0.00206]
[1752498195577,0.03856,121830.0,121820.0,0.00206]
[1752498195779,0.00317,121830.0,121820.0,0.1307]
[1752498196024,0.24560397,121830.0,121820.0,0.1307]
[1752498196208,0.25381152,121830.0,121820.0,0.1307]
[1752498196632,0.24560397,121830.0,121820.0,0.00206]
[1752498196838,0.00317,121830.0,121820.0,0.1307]
[1752498197033,0.24560397,121830.0,121820.0,0.1307]
[1752498197246,0.41797469,121830.0,121820.0,0.00206]
[1752498197389,0.41797469,121830.0,121820.0,0.1307]
[1752498197957,0.42618244,121830.0,121820.0,0.1307]
[1752498198101,0.1837484,121830.0,121820.0,0.1307]
[1752498198312,0.42618237,121830.0,121820.0,0.1307]
[1752498198579,0.24560397,121830.0,121820.0,0.1307]
[1752498198748,0.25381152,121830.0,121820.0,0.13367]
[1752498199171,0.2620192,121830.0,121820.0,0.13367]
[1752498199366,0.25381152,121830.0,121820.0,0.00503]
[1752498199572,0.25381152,121830.0,121820.0,0.13367]
[1752498199974,0.28681225,121830.0,121820.0,0.13367]
[1752498200230,0.03617073,121830.0,121820.0,0.47367]
[1752498200436,0.03617073,121830.0,121820.0,0.34503]
[1752498200437,0.2786047,121830.0,121820.0,0.34503]
[1752498200614,0.2764347,121830.0,121820.0,0.47363]
[1752498201430,0.03400073,121830.0,121820.0,0.47363]
[1752498201660,0.2764347,121830.0,121820.0,0.47363]
[1752498201878,0.2754347,121830.0,121820.0,0.47363]
[1752498202393,0.03300073,121830.0,121820.0,0.47363]
[1752498202595,0.03300073,121830.0,121820.0,0.62046397]
[1752498202813,0.57094546,121840.0,121820.0,0.74906397]
[1752498203024,0.15615398,121840.0,121820.0,0.50663]
[1752498203226,0.60770254,121840.0,121820.0,0.50663]
[1752498203441,0.44355188,121840.0,121820.0,0.50663]
[1752498203651,0.60770238,121840.0,121820.0,0.50663]
[1752498203844,0.44355188,121840.0,121820.0,0.50663]
[1752498204051,0.20111791,121840.0,121820.0,0.62046397]
[1752498204256,0.20932499,121840.0,121820.0,0.62046397]
[1752498204465,0.62511604,121840.0,121830.0,0.1286]
[1752498204685,0.63531325,121840.0,121830.0,0.1286]
[1752498205105,0.63531373,121840.0,121830.0,0.1286]
[1752498205302,0.61889917,121840.0,121830.0,0.1286]
[1752498205513,0.43833501,121840.0,121830.0,0.1286]
[1752498205669,0.43733501,121840.0,121830.0,0.1286]
[1752498205876,0.03501692,121840.0,121830.0,0.00497]
[1752498206079,0.27745089,121840.0,121830.0,0.13357]
[1752498206555,0.27745089,121840.0,121830.0,0.47357]
[1752498206767,0.03700692,121840.0,121830.0,0.4706]
[1752498207087,0.27944089,121840.0,121830.0,0.4706]
[1752498207507,0.27944089,121840.0,121830.0,0.47357]
[1752498207707,0.03700692,121840.0,121830.0,0.47357]
[1752498207929,0.28565783,121840.0,121830.0,0.47357]
[1752498208139,0.28565776,121840.0,121830.0,0.47357]
[1752498208482,0.27944089,121840.0,121830.0,0.47357]
[1752498208670,0.28764776,121840.0,121830.0,0.47357]
[1752498208835,0.34284089,121840.0,121830.0,0.47357]
[1752498209048,0.10040692,121840.0,121830.0,0.47357]
[1752498209250,0.31114089,121840.0,121830.0,0.47357]
[1752498209419,0.71114089,121840.0,121830.0,0.47357]
[1752498209618,0.67944089,121840.0,121830.0,0.47357]
[1752498209866,0.43700692,121840.0,121830.0,0.47357]
[1752498210111,0.67944089,121840.0,121830.0,0.47357]
[1752498210491,0.67745089,121840.0,121830.0,0.47357]
[1752498210995,0.68565776,121840.0,121830.0,0.47357]
[1752498211259,0.67745089,121840.0,121830.0,0.47357]
[1752498211491,0.67645089,121840.0,121830.0,0.47357]
[1752498211709,0.27844089,121840.0,121830.0,0.47353]
[1752498212159,0.27944089,121840.0,121830.0,0.47353]
[1752498212382,0.28764783,121840.0,121830.0,0.47353]
[1752498212646,0.46821189,121840.0,121830.0,0.47056]
[1752498212875,0.84752575,121840.0,121830.0,0.46856]
[1752498213104,0.37086509,121840.0,121830.0,0.34]
[1752498213336,0.86394051,121840.0,121830.0,0.46856]
[1752498213575,0.99250051,121840.0,121830.0,0.46856]
[1752498213866,0.5076325,121840.0,121830.0,0.46856]
[1752498214087,0.86394044,121840.0,121830.0,0.46856]
[1752498214558,0.85573303,121840.0,121830.0,0.46856]
[1752498215683,0.86394051,121840.0,121830.0,0.46856]
[1752498215909,0.49121781,121840.0,121830.0,0.46856]
[1752498216138,0.98429303,121840.0,121830.0,0.46856]
[1752498216824,0.85573303,121840.0,121830.0,0.34]
[1752498217041,0.99250044,121840.0,121830.0,0.46856]
[1752498217506,0.98429303,121840.0,121830.0,0.46856]
[1752498217742,0.99250038,121840.0,121830.0,0.46856]
[1752498218362,0.99250038,121840.0,121830.0,0.12856]
[1752498219130,0.25058711,121830.0,121810.0,0.03447]
[1752498219330,0.82174677,121820.0,121800.0,0.002]
[1752498219621,0.34508746,121820.0,121810.0,0.12856]
[1752498219802,0.34508746,121820.0,121800.0,0.002]
[1752498219803,0.00820896,121810.0,121800.0,0.002]
[1752498220040,0.82809456,121810.0,121800.0,0.002]
[1752498220455,0.82709456,121810.0,121800.0,0.002]
[1752498220671,0.95565456,121810.0,121800.0,0.002]
[1752498221062,0.66559597,121810.0,121800.0,0.002]
[1752498221280,0.34222662,121810.0,121800.0,0.002]
[1752498221526,0.79415597,121810.0,121800.0,0.005]
[1752498221731,0.79415597,121810.0,121800.0,0.002]
[1752498222075,0.79515597,121810.0,121800.0,0.002]
[1752498222618,0.66659597,121810.0,121800.0,0.003]
[1752498222813,0.47178662,121810.0,121800.0,0.003]
[1752498223015,0.79515597,121810.0,121800.0,0.002]
[1752498223209,0.79615597,121810.0,121800.0,0.002]
[1752498223536,0.66759597,121810.0,121800.0,0.002]
[1752498223765,0.78794681,121810.0,121800.0,0.002]
[1752498225360,0.65938681,121810.0,121800.0,0.002]
[1752498225608,0.78794681,121810.0,121800.0,0.002]
[1752498226576,0.65938681,121810.0,121800.0,0.002]
[1752498226781,0.78794681,121810.0,121800.0,0.002]
[1752498226987,0.65938681,121810.0,121800.0,0.002]
[1752498227194,0.78794681,121810.0,121800.0,0.002]
[1752498228838,0.84181618,121810.0,121800.0,0.002]
[1752498229944,0.33601746,121810.0,121800.0,0.002]
[1752498230146,0.40271466,121810.0,121800.0,0.00413]
[1752498230363,0.27415466,121810.0,121800.0,0.00413]
[1752498230564,0.46735466,121810.0,121800.0,0.002]
[1752498230764,0.47556409,121810.0,121800.0,0.002]
[1752498231760,0.34700409,121810.0,121800.0,0.002]
[1752498231962,0.46735513,121810.0,121800.0,0.002]
[1752498232816,0.33879513,121810.0,121800.0,0.002]
[1752498233114,0.46735513,121810.0,121800.0,0.002]
[1752498233532,0.33879513,121810.0,121800.0,0.002]
[1752498233768,0.46735513,121810.0,121800.0,0.002]
[1752498234400,0.33879513,121810.0,121800.0,0.002]
[1752498234614,0.46735513,121810.0,121800.0,0.002]
[1752498234724,0.84459385,121810.0,121800.0,0.002]
[1752498235348,0.46735513,121810.0,121800.0,0.002]
[1752498236553,0.83638469,121810.0,121800.0,0.002]
[1752498238412,0.45914597,121810.0,121800.0,0.002]
[1752498239338,0.33058597,121810.0,121800.0,0.002]
[1752498239541,0.83638469,121810.0,121800.0,0.002]
[1752498240136,0.54363423,121810.0,121800.0,0.002]
[1752498240372,0.002,121810.0,121800.0,0.07323]
[1752498240587,0.002,121810.0,121800.0,0.33031]
[1752498241202,0.0092089,121810.0,121800.0,0.33031]
[1752498241416,0.016418,121810.0,121800.0,0.33031]
[1752498241780,0.01641793,121810.0,121800.0,0.33031]
[1752498241989,0.02462709,121810.0,121800.0,0.33131]
[1752498242191,0.02462709,121810.0,121800.0,0.29841]
[1752498242387,0.02462703,121810.0,121800.0,0.29841]
[1752498242707,0.02462709,121810.0,121800.0,0.29841]
[1752498243069,0.20523588,121810.0,121800.0,0.26521]
[1752498243324,0.20523588,121810.0,121800.0,0.13369]
[1752498243325,0.57629604,121810.0,121800.0,0.13369]
[1752498243569,0.56808654,121810.0,121800.0,0.13369]
[1752498243846,0.57629597,121810.0,121800.0,0.13369]
[1752498244242,0.19905725,121810.0,121800.0,0.13369]
[1752498244455,0.58450547,121810.0,121800.0,0.13365]
[1752498245212,0.57629631,121810.0,121800.0,0.00513]
[1752498245418,0.57629631,121810.0,121800.0,0.13365]
[1752498245814,0.19905759,121810.0,121800.0,0.13365]
[1752498246028,0.56808708,121810.0,121800.0,0.00513]
[1752498246874,0.65237419,121810.0,121800.0,0.003]
[1752498247082,0.83748489,121810.0,121800.0,0.003]
[1752498247285,0.82927546,121810.0,121800.0,0.003]
[1752498250113,0.70896476,121810.0,121800.0,0.003]
[1752498250342,0.30479501,121810.0,121800.0,0.00513]
[1752498250582,0.29658524,121810.0,121800.0,0.00513]
[1752498250801,0.27219454,121810.0,121800.0,0.00513]
[1752498251028,0.40892397,121810.0,121800.0,0.00513]
[1752498251261,0.40071454,121810.0,121800.0,0.00513]
[1752498251472,0.40892397,121810.0,121800.0,0.00513]
[1752498251679,0.40071454,121810.0,121800.0,0.00513]
[1752498251961,0.40892397,121810.0,121800.0,0.00513]
[1752498252171,0.28040397,121810.0,121800.0,0.00513]
[1752498252379,0.78616269,121810.0,121800.0,0.00513]
[1752498253195,0.27219454,121810.0,121800.0,0.00513]
[1752498253415,0.40071454,121810.0,121800.0,0.00513]
[1752498254474,0.40892391,121810.0,121800.0,0.00513]
[1752498256247,0.28357391,121810.0,121800.0,0.00513]
[1752498256452,0.84252373,121810.0,121800.0,0.003]
[1752498256661,0.70579463,121810.0,121800.0,0.003]
[1752498256892,0.83431463,121810.0,121800.0,0.003]
[1752498257309,0.45707591,121810.0,121800.0,0.003]
[1752498259094,0.29288578,121810.0,121800.0,0.003]
[1752498259328,0.30109521,121810.0,121800.0,0.003]
[1752498259948,0.46528534,121810.0,121800.0,0.003]
[1752498263487,0.45707604,121810.0,121800.0,0.003]
[1752498265303,0.44886667,121810.0,121800.0,0.003]
[1752498265733,0.82610539,121810.0,121800.0,0.003]
[1752498265964,0.82610539,121810.0,121800.0,0.0037]
[1752498266169,0.44886667,121810.0,121800.0,0.0037]
[1752498266405,0.71212624,121810.0,121800.0,0.0037]
[1752498266637,0.84344358,121810.0,121800.0,0.0037]
[1752498266861,0.89060624,121810.0,121800.0,0.0037]
[1752498267330,0.51336752,121810.0,121800.0,0.0037]
[1752498267335,0.89060624,121810.0,121800.0,0.0037]
[1752498267968,0.76212624,121810.0,121800.0,0.0037]
[1752498268181,1.2206823,121810.0,121800.0,0.01903425]
[1752498268423,0.89060624,121810.0,121800.0,0.01903425]
[1752498268705,0.76212624,121810.0,121800.0,0.01903425]
[1752498268936,0.89060624,121810.0,121800.0,0.01903425]
[1752498269390,0.89060624,121810.0,121800.0,0.01803425]
[1752498269812,0.76212624,121810.0,121800.0,0.01803425]
[1752498270029,0.89060624,121810.0,121800.0,0.01802786]
[1752498270228,0.76212624,121810.0,121800.0,0.01802786]
[1752498270432,0.89060624,121810.0,121800.0,0.01802786]
[1752498270636,1.29060624,121810.0,121800.0,0.01802786]
[1752498270849,1.16212624,121810.0,121800.0,0.01802786]
[1752498271057,1.29160624,121810.0,121800.0,0.01802786]
[1752498273444,1.16312624,121810.0,121800.0,0.01802786]
[1752498273644,1.29160624,121810.0,121800.0,0.01802786]
[1752498278039,0.91436752,121810.0,121800.0,0.01802786]
[1752498278239,1.29160624,121810.0,121800.0,0.01802786]
[1752498278647,0.76312624,121810.0,121800.0,0.01801176]
[1752498278920,0.89160624,121810.0,121800.0,0.01801176]
[1752498279866,0.76312624,121810.0,121800.0,0.01801127]
[1752498280085,0.89160624,121810.0,121800.0,0.01801127]
[1752498280738,0.76312624,121810.0,121800.0,0.01801127]
[1752498280963,0.89160624,121810.0,121800.0,0.01801127]
[1752498281191,0.76312624,121810.0,121800.0,0.01801127]
[1752498281405,0.89160624,121810.0,121800.0,0.01801127]
[1752498282556,0.76312624,121810.0,121800.0,0.01801127]
[1752498282762,0.89160624,121810.0,121800.0,0.01801127]
[1752498283269,1.29160624,121810.0,121800.0,0.01801127]
[1752498283444,1.16312624,121810.0,121800.0,0.02033127]
[1752498283651,1.29160624,121810.0,121800.0,0.02033127]
[1752498285952,0.38588752,121810.0,121800.0,0.02033127]
[1752498286174,0.81060624,121810.0,121800.0,0.02033127]
[1752498286378,0.68212624,121810.0,121800.0,0.02033127]
[1752498286581,0.81060624,121810.0,121800.0,0.02033127]
[1752498287204,0.68212624,121810.0,121800.0,0.02033127]
[1752498287420,0.81060624,121810.0,121800.0,0.02033127]
[1752498287652,0.81060624,121810.0,121800.0,0.02033013]
[1752498288275,0.84200624,121810.0,121800.0,0.02033013]
[1752498290601,0.71352624,121810.0,121800.0,0.02033013]
[1752498290804,0.84196624,121810.0,121800.0,0.02033013]
[1752498291657,0.84196624,121810.0,121800.0,0.00502]
[1752498292691,0.46472752,121810.0,121800.0,0.00502]
[1752498292848,0.84196624,121810.0,121800.0,0.00502]
[1752498293245,0.89196624,121810.0,121800.0,0.00502]
[1752498298160,1.2220823,121810.0,121800.0,0.00502]
[1752498298370,1.14076496,121810.0,121800.0,0.00502]
[1752498298542,1.26920496,121810.0,121800.0,0.00502]
[1752498300276,0.89196624,121810.0,121800.0,0.00502]
[1752498300478,1.26920496,121810.0,121800.0,0.00502]
[1752498304432,1.14076496,121810.0,121800.0,0.00502]
[1752498304633,1.2220823,121810.0,121800.0,0.00502]
[1752498304838,1.3504823,121810.0,121800.0,0.00502]
[1752498305536,0.68451788,121790.0,121780.0,0.002]
[1752498305762,1.29633499,121790.0,121780.0,0.002]
[1752498306261,0.89931499,121790.0,121780.0,0.002]
[1752498306710,1.29931499,121790.0,121780.0,0.002]
[1752498307164,1.30031499,121790.0,121780.0,0.002]
[1752498308194,0.92307627,121790.0,121780.0,0.01733731]
[1752498308398,1.30031499,121790.0,121780.0,0.002]
[1752498309671,1.32540649,121790.0,121780.0,0.002]
[1752498310530,0.92540649,121790.0,121780.0,0.002]
[1752498311410,0.79700649,121790.0,121780.0,0.002]
[1752498311612,1.00668383,121790.0,121780.0,0.002]
[1752498311824,0.92536649,121790.0,121780.0,0.002]
[1752498312464,0.92540649,121790.0,121780.0,0.002]
[1752498313195,0.79700649,121790.0,121780.0,0.002]
[1752498313614,0.92536649,121790.0,121780.0,0.002]
[1752498314248,1.00668383,121790.0,121780.0,0.002]
[1752498314872,0.92536649,121790.0,121780.0,0.002]
[1752498315291,0.79700649,121790.0,121780.0,0.002]
[1752498315501,0.92536649,121790.0,121780.0,0.002]
[1752498320350,0.79700649,121790.0,121780.0,0.002]
[1752498320569,0.92536649,121790.0,121780.0,0.002]
[1752498321236,0.87832383,121790.0,121780.0,0.002]
[1752498321468,0.92536649,121790.0,121780.0,0.002]
[1752498326704,0.19712408,121750.0,121720.0,0.76951641]
[1752498326917,0.40679159,121750.0,121740.0,0.002]
[1752498327343,0.27847159,121750.0,121740.0,0.002]
[1752498327692,0.40679159,121750.0,121740.0,0.002]
[1752498328106,0.40679159,121750.0,121740.0,0.00251048]
[1752498328320,0.27025757,121750.0,121740.0,0.00251048]
[1752498328528,0.39857757,121750.0,121740.0,0.00251048]
[1752498328733,0.39857757,121750.0,121740.0,0.00548048]
[1752498329581,0.39857731,121750.0,121740.0,0.00548048]
[1752498329794,0.39857731,121750.0,121740.0,0.06958048]
[1752498330010,0.38215136,121750.0,121740.0,0.06958048]
[1752498330225,0.3903647,121750.0,121740.0,0.06958048]
[1752498330436,0.27025818,121750.0,121740.0,0.06958048]
[1752498330671,0.39857818,121750.0,121740.0,0.06958048]
[1752498330883,0.39857818,121750.0,121740.0,0.07458048]
[1752498331096,0.39857818,121750.0,121740.0,0.06958048]
[1752498331330,0.3903647,121750.0,121740.0,0.07358048]
[1752498331587,0.39857811,121750.0,121740.0,0.07358048]
[1752498332636,0.39857811,121750.0,121740.0,0.07558048]
[1752498332871,0.27025811,121750.0,121740.0,0.07558048]
[1752498333100,0.39853811,121750.0,121740.0,0.07558048]
[1752498333541,0.42305245,121750.0,121740.0,0.06958048]
[1752498334821,0.42405245,121750.0,121740.0,0.06958048]
[1752498335256,0.432266,121750.0,121740.0,0.06958048]
[1752498335533,0.42405245,121750.0,121740.0,0.06958048]
[1752498335994,0.432266,121750.0,121740.0,0.06958048]
[1752498336212,0.42405245,121750.0,121740.0,0.06958048]
[1752498336855,0.43226593,121750.0,121740.0,0.06958048]
[1752498337692,0.41583904,121750.0,121740.0,0.06958048]
[1752498337908,0.42405245,121750.0,121740.0,0.06958048]
[1752498338774,0.432266,121750.0,121740.0,0.06958048]
[1752498338999,0.43226593,121750.0,121740.0,0.06958048]
[1752498339215,0.42405245,121750.0,121740.0,0.06958048]
[1752498340152,0.41583904,121750.0,121740.0,0.06958048]
[1752498340841,0.42405245,121750.0,121740.0,0.06958048]
[1752498341302,0.41583904,121750.0,121740.0,0.06958048]
[1752498341529,0.42405252,121750.0,121740.0,0.06958048]
[1752498341760,0.41583904,121750.0,121740.0,0.06958048]
[1752498342691,0.41583904,121750.0,121740.0,0.03638048]
[1752498342912,0.42405252,121750.0,121740.0,0.03638048]
[1752498343221,0.70717327,121750.0,121740.0,0.03638048]
[1752498343445,0.69895979,121750.0,121740.0,0.03638048]